Cogmind - Beta 15 @@@ ROGUE MODE // 2025.10.08 @ 16:00:16 Player: microsand Result: Destroyed by S-10 Pest with Light Assault Rifle Performance ------------- Evolutions (1) 500 Regions Visited (3) 600 Robots Destroyed (32) 160 Value Destroyed (788) 788 Prototype IDs (1) 20 Alien Tech Used (0) 0 Bonus (0) 0 TOTAL SCORE: 2068 Bonus ------- None Cogmind --------- Core Integrity 0/400 Matter 300/300 Energy 90/100 System Corruption 0% Temperature Cool (0) Movement Flying (40) Location -9/Materials Parts ------- > --- POWER (1) -------- (None) > --- PROPULSION (3) --- Flight Unit > --- UTILITY (3) ------ Signal Interpreter > --- WEAPON (2) ------- Assault Rifle > --- INVENTORY (5) ---- Aluminum Leg Datajack Mining Laser Peak State ------------ > --- POWER ------------ Ion Engine > --- PROPULSION ------- Flight Unit Flight Unit Flight Unit > --- UTILITY ---------- Experimental Sensor Array Signal Interpreter > --- WEAPON ----------- Particle Gun Spread Laser > --- INVENTORY -------- Aluminum Leg Assault Rifle Datajack Mining Laser [Rating: 18] Favorites ----------- Power Ion Engine Engine Ion Engine Propulsion Aluminum Leg Treads Light Treads Leg Aluminum Leg Flight Unit Flight Unit Utility Small Storage Unit Device Experimental Sensor Array Storage Small Storage Unit Processor Signal Interpreter Weapon EM Pulse Gun Energy Gun EM Pulse Gun Ballistic Gun Assault Rifle Special Weapon Mining Laser Slashing Weapon Mining Claw Special Melee Weapon Datajack Build | -11 -10 -10 -9 ------- Run | Yrd Mat Min Mat Slots Evolved 2 | . . . 2 Power . | . . . . Propulsion 1 | . . . 1 Utility 1 | . . . 1 Weapon . | . . . . Parts Attached 30 | 10 10 1 9 Power 4 | 1 1 . 2 Engine 4 | 1 1 . 2 Core . | . . . . Reactor . | . . . . Propulsion 10 | 4 3 . 3 Treads 2 | 2 . . . Leg 3 | 2 1 . . Wheel . | . . . . Hover . | . . . . Flight 5 | . 2 . 3 Utility 4 | 2 1 1 . Device 2 | 1 . 1 . Storage 1 | 1 . . . Processor 1 | . 1 . . Hackware . | . . . . Protection . | . . . . Artifact . | . . . . Weapon 12 | 3 5 . 4 Energy Gun 7 | 2 2 . 3 Energy Cannon . | . . . . Ballistic Gun 2 | 1 . . 1 Ballistic Cannon . | . . . . Launcher . | . . . . Special Weapon 1 | . 1 . . Impact Weapon . | . . . . Slashing Weapon 1 | . 1 . . Piercing Weapon . | . . . . Special Melee Weapon 1 | . 1 . . Unidentified Prototypes 1 | . . 1 . Parts Lost 12 | . 2 . 10 Power 2 | . . . 2 Propulsion 5 | . 1 . 4 Utility 1 | . 1 . . Weapon 4 | . . . 4 Highest Loss Streak 4 | . 1 . 4 To Critical Strikes . | . . . . Average Backups 4 | 2 6 4 4 Power 1 | 1 1 1 . Propulsion 1 | 1 2 1 1 Utility . | . . . . Weapon 1 | . 1 1 1 Tool/Special . | . . . . Unused Backups 5 | . 4 1 . Power 2 | . 1 1 . Propulsion 1 | . 1 . . Utility 1 | . 1 . . Weapon 1 | . 1 . . Tool/Special . | . . . . Average Slot Usage (%) 76 | . 84 79 61 Engine 10 | . 14 . 3 Leg 14 | . 21 . . Flight 9 | . 5 28 16 Device 5 | . 2 8 11 Storage 7 | . 11 . . Processor 4 | . . 14 11 Energy Gun 15 | . 17 14 12 Ballistic Gun 7 | . 8 14 5 Peak Build Rating 18 | 7 7 14 18 Average Rating 8 | 5 5 11 15 On Entrance 6 | . 7 5 14 Naked Turns . | . . . . Heaviest Build 15 | 15 15 5 12 Greatest Support 40 | 40 20 8 12 Greatest Overweight (x) 3 | . 1 . 3 Average Overweight (x) . | . . . . Largest Inventory Capacity 8 | 8 8 5 5 Average Capacity 6 | 7 7 5 5 Most Carried 8 | 5 8 5 5 Average Carried 5 | 2 6 4 4 Final Capacity 8 | 8 5 5 5 Final Carried 5 | 4 5 4 3 Class Distribution -------------------- 93% | Mutant 6% | Scavenger-Mutant Dominant Class ---------------- Mutant | -10/Materials Mutant | -10/Mines Mutant | -9/Materials Resources | -11 -10 -10 -9 ----------- Run | Yrd Mat Min Mat Matter Collected 799 | 340 188 40 231 Remotely . | . . . . Salvage Created 1049 | 97 548 . 404 Parts 56 | 2 21 . 33 Haulers Intercepted . | . . . . Recyclers Shooed . | . . . . Parts Field Recycled . | . . . . Retrieved Matter . | . . . . Parts Self-Destructed . | . . . . Prevented . | . . . . Kills | -11 -10 -10 -9 ------- Run | Yrd Mat Min Mat Combat Hostiles Destroyed 24 | . 11 . 13 Guns 24 | . 11 . 13 Classes Destroyed 7 | 2 4 . 1 Tunneler 1 | 1 . . . Recycler 2 | 1 1 . . Operator 1 | . 1 . . Watcher 4 | . 3 . 1 Swarmer 9 | . 3 . 6 Grunt 12 | . 8 . 4 Sentry 3 | . . . 3 Best Kill Streak 5 | 1 3 . 5 Combat Bots Only 4 | . 2 . 4 Max Kills in Single Turn 1 | 1 1 . 1 Gunslinging . | . . . . Exploded . | . . . . Melee . | . . . . Uniques/NPCs Destroyed . | . . . . Combat | -11 -10 -10 -9 -------- Run | Yrd Mat Min Mat Hostile Shots Fired 179 | . 50 2 127 Missed 48 | . 12 1 35 Hits 131 | . 38 1 92 Projectile 131 | . 38 1 92 Critical Strikes 2 | . . . 2 Damage Taken 1435 | . 448 11 976 Core 449 | . 48 . 401 Absorbed by Shields . | . . . . Core Remaining (%) 90 | 100 . 80 . Volleys Fired 113 | 16 54 . 43 Largest 2 | 2 2 . 2 Hottest 130 | 60 100 . 130 Shots Fired 200 | 18 106 . 76 Gun 198 | 18 104 . 76 Cannon . | . . . . Launcher . | . . . . Special 2 | . 2 . . Kinetic 70 | 16 25 . 29 Thermal 74 | . 27 . 47 Explosive . | . . . . Electromagnetic 56 | 2 54 . . Robot Hit Streak 11 | 7 11 . 10 Robot Miss Streak 4 | 3 3 . 4 Penetration Max . | . . . . Secondary Targets 3 | . 2 . 1 Max Gunslinging Chain 1 | . 1 . 1 Shots Hit Robots 119 | 12 55 . 52 Core Hits 55 | 3 26 . 26 Critical Kills . | . . . . Critical Parts Destroyed . | . . . . Critical Strikes 2 | . 1 . 1 Burn 1 | . . . 1 Corrupt 1 | . 1 . . Melee Attacks 5 | . 5 . . Impact . | . . . . Slashing 1 | . 1 . . Piercing . | . . . . Sneak Attacks . | . . . . Combat Hostiles . | . . . . Follow-up Attacks . | . . . . Damage Inflicted 1656 | 152 776 . 728 Guns 1586 | 152 706 . 728 Cannons . | . . . . Explosions 70 | . 70 . . Melee . | . . . . Ramming . | . . . . Kinetic 588 | 137 129 . 322 Thermal 644 | . 238 . 406 Explosive . | . . . . Electromagnetic 424 | 15 409 . . Impact . | . . . . Slashing . | . . . . Piercing . | . . . . Highest Corruption . | . . . . Average Corruption . | . . . . Corruption Purged . | . . . . Corruption Blocked . | . . . . Overload Shots . | . . . . Overflow Damage . | . . . . Projectiles . | . . . . Explosions . | . . . . Melee . | . . . . Knockbacks . | . . . . Impact . | . . . . Kinetic . | . . . . Secondary . | . . . . Self-Inflicted Damage 48 | . 48 . . Shots 1 | . 1 . . Rammed . | . . . . Targets Rammed . | . . . . Kicked . | . . . . Crushed . | . . . . Highest Temperature 216 | . 198 . 216 Average Temperature 53 | . 53 . 52 Received Heat Transfer 498 | . 162 6 330 Siege Activations . | . . . . Martial Activations . | . . . . Shielding Activations . | . . . . Robots Disrupted . | . . . . Combat Hostiles . | . . . . Robots Corrupted . | . . . . Combat Hostiles . | . . . . Parts Fried 4 | . 4 . . Impact Corruptions . | . . . . Robots Melted . | . . . . Combat Hostiles . | . . . . Parts Melted 2 | . . . 2 Heat Transferred 1429 | . 475 . 954 Parts Sabotaged . | . . . . Parts Stolen . | . . . . Parts Stripped . | . . . . Power Chain Reactions 1 | . 1 . . Alert | -11 -10 -10 -9 ------- Run | Yrd Mat Min Mat Maximum Alert Level . | . . . . Low Security (%) 100 | 100 100 100 100 Level 1 . | . . . . Level 2 . | . . . . Level 3 . | . . . . Level 4 . | . . . . Level 5 . | . . . . High Security . | . . . . Max Security . | . . . . Peak Influence 172 | 5 126 25 172 Initial 25 | . . 25 1 Average 69 | . 74 19 109 Influence Increases 845 | 10 393 . 442 Destroy 0b10 Robot/C 480 | . 220 . 260 Destroy 0b10 Robot/NC 40 | 10 25 . 5 Destroy Leader 138 | . 66 . 72 Successful Hack 4 | . 4 . . Disable Machine 45 | . 45 . . Destroy Structure 18 | . 18 . . Lose Combat Pursuer 120 | . 15 . 105 Influence Decreases 673 | 10 326 62 275 Entered New Map 46 | . . 42 4 Time Decay 507 | 10 306 20 171 Lost Part 120 | . 20 . 100 Squads Dispatched 6 | . 3 . 3 Investigation 3 | . 1 . 2 Extermination . | . . . . Reinforcement 3 | . 2 . 1 Assault . | . . . . Garrison . | . . . . Intercept . | . . . . Searches Triggered . | . . . . Construction Impeded . | . . . . Haulers Reinforced . | . . . . Active Scanning Responses . | . . . . Cargo Convoy Interrupts . | . . . . Stealth | -11 -10 -10 -9 --------- Run | Yrd Mat Min Mat Distress Signals 5 | . 1 . 4 Communications Jammed . | . . . . Distress Signals . | . . . . Times Spotted 53 | . 18 2 33 Peak Tracking Total 12 | . 3 2 12 Tactical Retreats 3 | . 1 . 2 Traps | -11 -10 -10 -9 ------- Run | Yrd Mat Min Mat Traps Triggered 1 | . . . 1 Indirectly . | . . . . Trap Hack Attempts . | . . . . Triggered . | . . . . Disarmed . | . . . . Reprogrammed . | . . . . Reused . | . . . . Traps Extracted . | . . . . Installed . | . . . . Triggered . | . . . . Machines | -11 -10 -10 -9 ---------- Run | Yrd Mat Min Mat Machines Disabled 3 | . 3 . . Max in Single Turn 1 | . 1 . . Machines Repaired . | . . . . Machines Dismantled . | . . . . Machines Sabotaged . | . . . . Overloaded Fab Kills . | . . . . Hacking | -11 -10 -10 -9 --------- Run | Yrd Mat Min Mat Machines Accessed 5 | . 4 . 1 Terminals 5 | . 4 . 1 Fabricators . | . . . . Repair Stations . | . . . . Recycling Units . | . . . . Scanalyzers . | . . . . Garrison Access . | . . . . Total Hacks 15 | . 13 . 2 Successful 4 | . 3 . 1 Failed 11 | . 10 . 1 Catastrophic 2 | . 2 . . Database Lockouts . | . . . . Manual 15 | . 13 . 2 Terminals 15 | . 13 . 2 Fabricators . | . . . . Repair Stations . | . . . . Recycling Units . | . . . . Scanalyzers . | . . . . Garrison Access . | . . . . Terminal Hacks . | . . . . Fabricator Hacks . | . . . . Repair Station Hacks . | . . . . Recycling Unit Hacks . | . . . . Scanalyzer . | . . . . Garrison Access Hacks . | . . . . Unauthorized Hacks 4 | . 3 . 1 Terminals 4 | . 3 . 1 Botnet 4 | . 3 . 1 Fabricators . | . . . . Repair Stations . | . . . . Recycling Units . | . . . . Scanalyzers . | . . . . Garrison Access . | . . . . Data Cores Recovered . | . . . . Used . | . . . . Hacking Detections 5 | . 4 . 1 Full Trace Events 4 | . 3 . 1 Feedback Events . | . . . . Feedback Blocked . | . . . . Robot Schematics Acquired . | . . . . Robots Built . | . . . . Authchips . | . . . . Time . | . . . . Total Robot Build Rating . | . . . . Part Schematics Acquired . | . . . . Parts Built . | . . . . Authchips . | . . . . Time . | . . . . Total Part Build Rating . | . . . . Parts Repaired . | . . . . Time . | . . . . Parts Recycled . | . . . . Recycled Matter . | . . . . Retrieved Matter . | . . . . Retrieved Components . | . . . . Parts Scanalyzed . | . . . . Part Schematics Acquired . | . . . . Parts Damaged . | . . . . Bothacking | -11 -10 -10 -9 ------------ Run | Yrd Mat Min Mat Used RIF Installer . | . . . . Robots Hacked . | . . . . Non-combat . | . . . . Combat . | . . . . Robot Hacks Applied . | . . . . Relay Couplers Released . | . . . . Fabnet Peak Effective % . | . . . . Robots Rewired . | . . . . Allies Hacked . | . . . . Hacks Repelled . | . . . . Allies | -11 -10 -10 -9 -------- Run | Yrd Mat Min Mat Total Allies . | . . . . Largest Group . | . . . . Highest-Rated Group . | . . . . Highest-Rated Ally . | . . . . Total Orders . | . . . . Ally Attacks . | . . . . Total Damage . | . . . . Kills . | . . . . Allies Corrupted . | . . . . Allies Melted . | . . . . Intel | -11 -10 -10 -9 ------- Run | Yrd Mat Min Mat Active Infowar (turns) 592 | 49 139 30 374 Sensors 404 | . . 30 374 Seismic 188 | 49 139 . . Robot Analysis Total . | . . . . Derelict Logs Recovered . | . . . . Drone Launches . | . . . . Drone Recoveries . | . . . . Exploration | -11 -10 -10 -9 ------------- Run | Yrd Mat Min Mat Turns Passed 1443 | 257 763 41 382 Spaces Moved 1069 | 163 612 103 191 Core 58 | 21 . . 37 Treads 28 | 28 . . . Legs 449 | 114 335 . . Wheels . | . . . . Hover . | . . . . Flight 534 | . 277 103 154 Fastest Speed 34 | 50 37 37 34 Average Speed 79 | 117 84 37 54 Slowest Speed 200 | 160 190 37 200 Overloaded Moves . | . . . . Propulsion Burnouts . | . . . . Robots Hopped 2 | . 2 . . Potential Cave-ins . | . . . . Cave-ins Triggered . | . . . . Exploration Rate (%) 31 | 6 81 17 22 Regions Visited 3 Branch Regions 1 Pre-discovered Areas . | . . . . Known Exits Taken 2 | . 1 1 . Unknown Exits Taken 1 | 1 . . . Scrap Searched 1 | . . 1 . Spaces Dug 3 | . 3 . . Terrain Destroyed 20 | . 20 . . Melee 1 | . 1 . . Projectile 2 | . 2 . . AOE 17 | . 17 . . Terrain Rammed . | . . . . Walls Destroyed . | . . . . Machines Disabled . | . . . . Actions | -11 -10 -10 -9 --------- Run | Yrd Mat Min Mat Total 1452 | 208 741 105 398 Wait 162 | 6 35 . 121 Move 1062 | 162 607 102 191 Hop 2 | . 2 . . Pick Up 42 | 12 14 1 15 Fast Attach . | . . . . Attach 27 | 7 5 1 14 Detach 2 | . 1 . 1 Swap 16 | 4 8 . 4 Drop 21 | 1 10 1 9 Fire 113 | 16 54 . 43 Melee 5 | . 5 . . Ram . | . . . . Kick . | . . . . Crush . | . . . . Escape Stasis . | . . . . Rewire . | . . . . Trap . | . . . . Miscellaneous . | . . . . Route ------- -11/Scrapyard -10/Materials (discovered 4 exits: *Mat x3 / *Min) -10/Mines -9/Materials (discovered 1 exit: *Min) History --------- Turn | Location | Event 3 | -11/Scrapyard | Discovered new exit (range 16) 258 | -11/Scrapyard | Entered Materials 316 | -10/Materials | Build established: Mutant 577 | -10/Materials | Discovered new exit (range 10) 905 | -10/Materials | Discovered new exit (range 14) 932 | -10/Materials | Discovered new exit (range 11) 1002 | -10/Materials | Discovered new exit (range 14) 1017 | -10/Materials | Identified exit to Mines 1021 | -10/Materials | Entered Mines 1028 | -10/Mines | Found a damaged Exp. Sensor Array with a note attached 1031 | -10/Mines | Found Prototype Device 1032 | -10/Mines | Identified Exp. Sensor Array 1058 | -10/Mines | Discovered new exit (range 10) 1061 | -10/Mines | Identified exit to Materials 1062 | -10/Mines | Entered Materials 1062 | -9/Materials | Evolved 2 slots: Propulsion x1, Utility x1 1283 | -9/Materials | Lost 4 parts (2p2w) 1351 | -9/Materials | Core integrity fell below 50% 1426 | -9/Materials | Discovered new exit (range 13) 1430 | -9/Materials | Identified exit to Mines 1439 | -9/Materials | Core integrity fell below 20% 1444 | -9/Materials | Destroyed by S-10 Pest with Light Assault Rifle Last Messages --------------- 01371_ G-34 Mercenary destroyed. 01374_ K-01 Serf collects debris. 01378_ Beam Rifle destroyed. 01382_ G-34 Mercenary destroyed. 01394_ Acquired Ion Engine. 01402_ Acquired Flight Unit. 01411_ Acquired 56 matter. 01415_ Hvy. Assault Rifle destroyed. 01417_ Flight Unit destroyed. 01418_ W-16 Scout sends out distress signal. 01419_ W-16 Scout destroyed. 01421_ K-01 Serf collects debris. 01426_ EXIT=FOUND 01430_ EXIT=IDENTIFIED: MINES 01438_ Critical hit (Burn: +37). 01439_ S-10 Pest destroyed. 01442_ Flight Unit destroyed. 01442_ Acquired 17 matter. 01443_ Dropped Ion Engine. 01444_ Dropped Exp. Sensor Array. Map ----- +----------------------------------------------------+ | ?????????????????????????????????????????????????? | | ?????????????????????????????????????????????????? | | ?????????????????????????????????????????????????? | | ?????????????????????????????????????????????????? | | ?????????????????????????????????????????????????? | | ??????????????????????????# #??????????????????? | | ?????????????????????????? ??????????????????? | | ?????????????????????????? ??????????????????? | | ?????????????????????????? ??????????????????? | | ?????????????????????????? ??????????????????? | | ?????????????????????????? ??????????????????? | | ??????????????????????????# #??????????????????? | | ??????????????????????????# #??????????????????? | | ??????????????????????????# #??????????????????? | | ??????????????????????????# #??????????????????? | | ?????????????????????????## ####???????????????? | | ????#????????????????????# """#???????????????? | | ? #????????????????????# "#???????????????? | | "" #????????????????????# !"#???????????????? | | "" ?????????????????????# > ""#???????????????? | | "" ??????????????????????# |"#???????????????? | | ???????????????????????# "#???????????????? | | ###??????????????????????# """#???????????????? | | ########????????######### ####???????????????? | | = #????????# !!s# #######????????????? | | %= #????????# = ]@k Y/ #???????????? | | #????????# =!s# # + ?????? | | ### #?###????######### k# " ####????????? | | ###?# ###T############## #?T =[[#???????????? | | ????# x #?? =[ #???????????? | | ????# #???[[ #???????????? | | ????# #????###???????????? | | ????# x #??????????????????? | | ????# #??????????????????? | | ????# #??????????????????? | | ????# ?????????????????? | | ????# ##### ???????????????? | | ????# #???# """ ??????????????? | | ????# #####/##???# """ "?????????????? | | ????#######??? ?????###### """ "?????????????? | | ????????????? ??????????# ?? ????????????? | | ???????????? ??????????# ?????????????????? | | ???????????? ]]??????????? """????????????????? | | ???????????? ] ??????????? ""?????????????????? | | ????????????? ???????????? "??????????????????? | | ??????????????????????????? ??????????????????? | | ??????????????????????????? ????????????????????? | | ?????????????????????????????????????????????????? | | ?????????????????????????????????????????????????? | | ?????????????????????????????????????????????????? | +----------------------------------------------------+ Best States ------------- Heat Dissipation 28 Energy Generation 10 Energy Capacity 250 Matter Stores 300 Matter Capacity 300 Sight Range 16 Robot Scan Range 20 Terrain Scan Density 10 Evasion (%) 63 Recoil Reduction 2 Item Schematics ----------------- None Robot Schematics ------------------ None Fabricated ------------ Nothing Repaired ---------- Nothing Alien Tech Used ----------------- None Achievements -------------- Quantum Hacking Challenges ------------ None Game ------ Seed AdvancedMicrodissipatorSink Manual? 0 Play Time 00:20:35 Cumulative 7.5 hours Start 2025.10.08 @ 15:38:27 End 2025.10.08 @ 16:00:16 Sessions 1 Manual Loads 0 Difficulty Rogue Special Mode None Game No. 25 Rogue 25 Adventurer 0 Explorer 0 Win Type - Total 0 Types 0/0/0/0/0/0/0/0/0/0 Lore% 10 Gallery% 14 Achievement% 13 Wizard Run 0 Options --------- Layout 1 ASCII 0 Keyboard 0 Movement Numpad Keybinds 0 Fullscreen 1 Font 24/Smallcaps Map View 50x35 Zoom Use 0% Tactical HUD 1 Map Filters NONE Filters NONE Steam X RUN: 3f3a4f1d-e7d1-4207-98ad-a426671ff78c